[Event "Late-Titled-Tuesday-Blitz-March-26-2024"]
[Site "Chess.com"]
[Date "2024.03.26"]
[Round "6"]
[White "The_Straightforward_Rook"]
[Black "andrzej"]
[Result "1/2-1/2"]
[WhiteElo "2389"]
[BlackElo "2517"]
[TimeControl "180+1"]
[EndTime "15:08:47 PDT"]
[Termination "Game drawn by repetition"]

1. e4 {[%clk 0:02:56.1]} 1... c5 {[%clk 0:02:59.7]} 2. c3 {[%clk 0:02:55.4]}
2... Nf6 {[%clk 0:02:59.2]} 3. e5 {[%clk 0:02:55.2]} 3... Nd5 {[%clk 0:02:59.8]}
4. Nf3 {[%clk 0:02:56.1]} 4... d6 {[%clk 0:02:55.2]} 5. Bc4 {[%clk 0:02:56.2]}
5... Nb6 {[%clk 0:02:52.9]} 6. Bb3 {[%clk 0:02:56.5]} 6... c4 {[%clk 0:02:47.2]}
7. Bc2 {[%clk 0:02:55.2]} 7... Nc6 {[%clk 0:02:46.4]} 8. exd6 {[%clk 0:02:52.3]}
8... Qxd6 {[%clk 0:02:46.1]} 9. O-O {[%clk 0:02:49.8]} 9... Bg4 {[%clk
0:02:45.5]} 10. h3 {[%clk 0:02:48.2]} 10... Bh5 {[%clk 0:02:45.2]} 11. Re1
{[%clk 0:02:43.5]} 11... e6 {[%clk 0:02:45]} 12. Na3 {[%clk 0:02:41]} 12... Rd8
{[%clk 0:02:43.4]} 13. Qe2 {[%clk 0:02:39.7]} 13... Be7 {[%clk 0:02:20.6]} 14.
Nxc4 {[%clk 0:02:37.7]} 14... Nxc4 {[%clk 0:02:20.5]} 15. Qxc4 {[%clk
0:02:38.6]} 15... Bxf3 {[%clk 0:02:20.7]} 16. gxf3 {[%clk 0:02:39.5]} 16... O-O
{[%clk 0:02:20.7]} 17. d4 {[%clk 0:02:39]} 17... Bf6 {[%clk 0:02:15.6]} 18. Re4
{[%clk 0:02:14.1]} 18... Ne7 {[%clk 0:02:13.2]} 19. Bf4 {[%clk 0:02:13]} 19...
Qd5 {[%clk 0:01:59.4]} 20. Qxd5 {[%clk 0:02:06.2]} 20... Nxd5 {[%clk 0:02:00.3]}
21. Bg3 {[%clk 0:02:05.2]} 21... Rc8 {[%clk 0:01:55]} 22. Re2 {[%clk 0:02:01.7]}
22... Rfd8 {[%clk 0:01:52.4]} 23. Bb3 {[%clk 0:01:52.7]} 23... b5 {[%clk
0:01:50.6]} 24. a3 {[%clk 0:01:47.6]} 24... Nb6 {[%clk 0:01:48.8]} 25. Be5
{[%clk 0:01:45.9]} 25... Be7 {[%clk 0:01:45.1]} 26. Rae1 {[%clk 0:01:32]} 26...
Nc4 {[%clk 0:01:43.1]} 27. Bxc4 {[%clk 0:01:28]} 27... Rxc4 {[%clk 0:01:44]} 28.
Kh2 {[%clk 0:01:19]} 28... Bf8 {[%clk 0:01:39.8]} 29. h4 {[%clk 0:01:17.6]}
29... h5 {[%clk 0:01:37.6]} 30. Rg1 {[%clk 0:01:13.7]} 30... g6 {[%clk
0:01:37.3]} 31. Bf6 {[%clk 0:01:12.4]} 31... Rd5 {[%clk 0:01:35.2]} 32. Rg5
{[%clk 0:01:12.4]} 32... Bd6+ {[%clk 0:01:28]} 33. Kg2 {[%clk 0:01:08.1]} 33...
Rxg5+ {[%clk 0:01:21.8]} 34. hxg5 {[%clk 0:01:06.7]} 34... Rc8 {[%clk
0:01:18.7]} 35. Be5 {[%clk 0:01:03]} 35... Be7 {[%clk 0:01:17.8]} 36. f4 {[%clk
0:01:02.2]} 36... a5 {[%clk 0:01:17.3]} 37. Rd2 {[%clk 0:00:59.8]} 37... b4
{[%clk 0:01:13.2]} 38. axb4 {[%clk 0:00:48.4]} 38... axb4 {[%clk 0:01:13.4]} 39.
d5 {[%clk 0:00:49]} 39... exd5 {[%clk 0:01:10.1]} 40. Rxd5 {[%clk 0:00:48.6]}
40... bxc3 {[%clk 0:00:59.8]} 41. bxc3 {[%clk 0:00:46]} 41... Rc4 {[%clk
0:00:53.9]} 42. Kf3 {[%clk 0:00:45.5]} 42... Kf8 {[%clk 0:00:52]} 43. Ke3 {[%clk
0:00:32.9]} 43... Ke8 {[%clk 0:00:51.8]} 44. Kd3 {[%clk 0:00:33.2]} 44... Ra4
{[%clk 0:00:52]} 45. Rb5 {[%clk 0:00:31.4]} 45... Kd7 {[%clk 0:00:39.4]} 46.
Rb7+ {[%clk 0:00:30.9]} 46... Ke6 {[%clk 0:00:39.6]} 47. f3 {[%clk 0:00:23.2]}
47... h4 {[%clk 0:00:36.5]} 48. Rb8 {[%clk 0:00:20.5]} 48... h3 {[%clk
0:00:24.3]} 49. Rh8 {[%clk 0:00:19.6]} 49... h2 {[%clk 0:00:23.4]} 50. Rxh2
{[%clk 0:00:18.8]} 50... Bxg5 {[%clk 0:00:24]} 51. fxg5 {[%clk 0:00:12.6]} 51...
Kxe5 {[%clk 0:00:24.5]} 52. Rb2 {[%clk 0:00:10.7]} 52... Ra1 {[%clk 0:00:19.8]}
53. Rb5+ {[%clk 0:00:10.7]} 53... Kf4 {[%clk 0:00:19.6]} 54. Rb7 {[%clk
0:00:09.7]} 54... Kxf3 {[%clk 0:00:13.6]} 55. Rxf7+ {[%clk 0:00:09.8]} 55... Kg4
{[%clk 0:00:14.2]} 56. c4 {[%clk 0:00:09.4]} 56... Kxg5 {[%clk 0:00:13.9]} 57.
c5 {[%clk 0:00:09.8]} 57... Kh4 {[%clk 0:00:11.8]} 58. c6 {[%clk 0:00:09.6]}
58... Rc1 {[%clk 0:00:11.7]} 59. c7 {[%clk 0:00:09.5]} 59... g5 {[%clk
0:00:11.7]} 60. Ke4 {[%clk 0:00:10]} 60... Kg3 {[%clk 0:00:09.1]} 61. Rg7 {[%clk
0:00:07.7]} 61... g4 {[%clk 0:00:09]} 62. Kf5 {[%clk 0:00:08]} 62... Rc5+ {[%clk
0:00:08.4]} 63. Ke4 {[%clk 0:00:07.3]} 63... Kf2 {[%clk 0:00:07.3]} 64. Rxg4
{[%clk 0:00:06.5]} 64... Rxc7 {[%clk 0:00:07.2]} 65. Rf4+ {[%clk 0:00:07.1]}
65... Ke2 {[%clk 0:00:07.3]} 66. Rh4 {[%clk 0:00:07.3]} 66... Kf2 {[%clk
0:00:07.7]} 67. Rh2+ {[%clk 0:00:07]} 67... Kg3 {[%clk 0:00:07.9]} 68. Ra2
{[%clk 0:00:07.9]} 68... Re7+ {[%clk 0:00:07.8]} 69. Kd5 {[%clk 0:00:08.2]}
69... Rd7+ {[%clk 0:00:08.2]} 70. Ke5 {[%clk 0:00:08.9]} 70... Re7+ {[%clk
0:00:08.6]} 71. Kd5 {[%clk 0:00:08.2]} 71... Rd7+ {[%clk 0:00:08.8]} 72. Ke5
{[%clk 0:00:08.9]} 72... Re7+ {[%clk 0:00:09.2]} 73. Kd5 {[%clk 0:00:09.4]}
1/2-1/2

[Event "Late-Titled-Tuesday-Blitz-March-26-2024"]
[Site "Chess.com"]
[Date "2024.03.26"]
[Round "6"]
[White "Karttunen"]
[Black "Arigu07"]
[Result "0-1"]
[WhiteElo "2702"]
[BlackElo "2567"]
[TimeControl "180+1"]
[EndTime "15:08:49 PDT"]
[Termination "Arigu07 won by resignation"]

1. e4 {[%clk 0:03:00.9]} 1... Nf6 {[%clk 0:02:58.4]} 2. e5 {[%clk 0:03:00.5]}
2... Nd5 {[%clk 0:02:58]} 3. c4 {[%clk 0:03:00.6]} 3... Nb6 {[%clk 0:02:57.7]}
4. d4 {[%clk 0:03:01.3]} 4... d6 {[%clk 0:02:58.1]} 5. f4 {[%clk 0:03:01.7]}
5... g6 {[%clk 0:02:58.3]} 6. Be3 {[%clk 0:03:00.9]} 6... Bg7 {[%clk 0:02:58.6]}
7. Nc3 {[%clk 0:03:00.7]} 7... O-O {[%clk 0:02:59]} 8. Be2 {[%clk 0:02:56.5]}
8... Be6 {[%clk 0:02:57]} 9. b3 {[%clk 0:02:51.6]} 9... c6 {[%clk 0:02:50.3]}
10. Nf3 {[%clk 0:02:48.2]} 10... Bg4 {[%clk 0:02:48.6]} 11. O-O {[%clk
0:02:36.5]} 11... N8d7 {[%clk 0:02:45.8]} 12. h3 {[%clk 0:02:35.2]} 12... Bxf3
{[%clk 0:02:42.8]} 13. Bxf3 {[%clk 0:02:34.3]} 13... Qc7 {[%clk 0:02:25]} 14. a4
{[%clk 0:02:26.8]} 14... Rad8 {[%clk 0:02:22.9]} 15. Qe2 {[%clk 0:02:17.4]}
15... Rfe8 {[%clk 0:02:13.6]} 16. Rad1 {[%clk 0:02:08.4]} 16... Nc8 {[%clk
0:01:56.8]} 17. Bf2 {[%clk 0:02:07.4]} 17... e6 {[%clk 0:01:56.3]} 18. Bh4
{[%clk 0:01:52.3]} 18... Ne7 {[%clk 0:01:34.9]} 19. Ne4 {[%clk 0:01:48.6]} 19...
dxe5 {[%clk 0:00:56]} 20. fxe5 {[%clk 0:01:46]} 20... Nf5 {[%clk 0:00:53]} 21.
Bxd8 {[%clk 0:01:43.5]} 21... Rxd8 {[%clk 0:00:53.5]} 22. c5 {[%clk 0:01:27.6]}
22... b6 {[%clk 0:00:38.1]} 23. b4 {[%clk 0:01:24.5]} 23... a5 {[%clk
0:00:37.4]} 24. g4 {[%clk 0:01:10.2]} 24... Nh4 {[%clk 0:00:36.4]} 25. Nd6
{[%clk 0:01:02.3]} 25... axb4 {[%clk 0:00:32.4]} 26. Be4 {[%clk 0:00:56.7]}
26... Rf8 {[%clk 0:00:29]} 27. cxb6 {[%clk 0:00:53.2]} 27... Qxb6 {[%clk
0:00:28.4]} 28. Kh1 {[%clk 0:00:53.3]} 28... c5 {[%clk 0:00:26.4]} 29. Qb5
{[%clk 0:00:47.6]} 29... Qc7 {[%clk 0:00:24.9]} 30. Qc6 {[%clk 0:00:42.1]} 30...
Qxc6 {[%clk 0:00:21.9]} 31. Bxc6 {[%clk 0:00:41.9]} 31... Nb8 {[%clk 0:00:22.6]}
32. Bb5 {[%clk 0:00:39]} 32... cxd4 {[%clk 0:00:23]} 33. Nc4 {[%clk 0:00:36]}
33... Rd8 {[%clk 0:00:17.6]} 34. Rd3 {[%clk 0:00:34.4]} 34... g5 {[%clk
0:00:11.7]} 35. Kg1 {[%clk 0:00:34.3]} 35... Ng6 {[%clk 0:00:11.7]} 36. Rb1
{[%clk 0:00:28.4]} 36... Bxe5 {[%clk 0:00:10.3]} 37. Rxb4 {[%clk 0:00:27.7]}
37... Bc7 {[%clk 0:00:09]} 38. Rbb3 {[%clk 0:00:26.2]} 38... Nf4 {[%clk
0:00:09.2]} 39. Rd1 {[%clk 0:00:26.4]} 39... e5 {[%clk 0:00:09.7]} 40. Nd2
{[%clk 0:00:25.6]} 40... d3 {[%clk 0:00:08]} 41. Ne4 {[%clk 0:00:25.7]} 41...
Rd4 {[%clk 0:00:08.1]} 42. Nxg5 {[%clk 0:00:25.8]} 42... e4 {[%clk 0:00:08.2]}
43. Rc3 {[%clk 0:00:23.7]} 43... Bb6 {[%clk 0:00:08]} 44. Kh1 {[%clk 0:00:21.9]}
44... e3 {[%clk 0:00:07.7]} 45. Rc8+ {[%clk 0:00:21.2]} 45... Kg7 {[%clk
0:00:07.9]} 46. Nf3 {[%clk 0:00:19.2]} 46... e2 {[%clk 0:00:08]} 47. Rd2 {[%clk
0:00:18.9]} 47... Re4 {[%clk 0:00:07]} 48. Ne1 {[%clk 0:00:17.3]} 48... Ba5
{[%clk 0:00:06.9]} 49. Bxd3 {[%clk 0:00:14.7]} 49... Bxd2 {[%clk 0:00:06.4]} 50.
Bxe4 {[%clk 0:00:14.4]} 50... Bxe1 {[%clk 0:00:07]} 51. Bf3 {[%clk 0:00:14.5]}
51... Nd7 {[%clk 0:00:05.8]} 52. Re8 {[%clk 0:00:12.3]} 52... Nf6 {[%clk
0:00:05]} 53. Re5 {[%clk 0:00:11.3]} 53... Bc3 {[%clk 0:00:04.9]} 54. Rxe2
{[%clk 0:00:11.4]} 54... Nxe2 {[%clk 0:00:05.4]} 55. Bxe2 {[%clk 0:00:12.3]}
55... Nd5 {[%clk 0:00:06]} 56. Bf3 {[%clk 0:00:11]} 56... Nf4 {[%clk 0:00:05.9]}
57. h4 {[%clk 0:00:11]} 57... Kf6 {[%clk 0:00:06.5]} 58. Kh2 {[%clk 0:00:10.6]}
58... Ke5 {[%clk 0:00:07]} 59. Kg3 {[%clk 0:00:10.8]} 59... Be1+ {[%clk
0:00:06.6]} 60. Kh2 {[%clk 0:00:11]} 60... Bxh4 {[%clk 0:00:07.5]} 61. a5 {[%clk
0:00:10.5]} 61... Bd8 {[%clk 0:00:08.1]} 62. a6 {[%clk 0:00:10.9]} 62... Bb6
{[%clk 0:00:08.7]} 63. Kg3 {[%clk 0:00:11.4]} 63... Ng6 {[%clk 0:00:07.9]} 64.
Bb7 {[%clk 0:00:11.1]} 64... Kf6 {[%clk 0:00:08.2]} 65. Kf3 {[%clk 0:00:11.5]}
65... Kg5 {[%clk 0:00:08.7]} 66. Bd5 {[%clk 0:00:11.6]} 66... h6 {[%clk
0:00:08.3]} 67. Kg3 {[%clk 0:00:11.4]} 67... Ne5 {[%clk 0:00:08.7]} 68. Kh3
{[%clk 0:00:09.5]} 68... f6 {[%clk 0:00:09.3]} 69. Be6 {[%clk 0:00:09.4]} 69...
Ba7 {[%clk 0:00:09.8]} 70. Bf5 {[%clk 0:00:09.8]} 70... h5 {[%clk 0:00:10.4]}
71. gxh5 {[%clk 0:00:07.2]} 71... Kxf5 {[%clk 0:00:10.6]} 72. Kh4 {[%clk
0:00:07.7]} 72... Ng4 {[%clk 0:00:10.6]} 73. h6 {[%clk 0:00:07.9]} 73... Nxh6
{[%clk 0:00:10.9]} 0-1

[Event "Late-Titled-Tuesday-Blitz-March-26-2024"]
[Site "Chess.com"]
[Date "2024.03.26"]
[Round "6"]
[White "ckgchess"]
[Black "FairChess_on_YouTube"]
[Result "1-0"]
[WhiteElo "2932"]
[BlackElo "3100"]
[TimeControl "180+1"]
[EndTime "15:09:02 PDT"]
[Termination "ckgchess won by resignation"]

1. e4 {[%clk 0:03:00.9]} 1... e6 {[%clk 0:02:58]} 2. d4 {[%clk 0:03:01.3]} 2...
d5 {[%clk 0:02:58.3]} 3. Nc3 {[%clk 0:03:01.9]} 3... Bb4 {[%clk 0:02:57.5]} 4.
e5 {[%clk 0:03:02.3]} 4... c5 {[%clk 0:02:57.8]} 5. a3 {[%clk 0:03:03]} 5...
Bxc3+ {[%clk 0:02:58.1]} 6. bxc3 {[%clk 0:03:03.9]} 6... Qa5 {[%clk 0:02:58.4]}
7. Bd2 {[%clk 0:03:03.8]} 7... Qa4 {[%clk 0:02:58.7]} 8. Qg4 {[%clk 0:03:04.1]}
8... Kf8 {[%clk 0:02:54.5]} 9. Nf3 {[%clk 0:03:01.2]} 9... Ne7 {[%clk
0:02:53.8]} 10. h4 {[%clk 0:02:45.5]} 10... Nbc6 {[%clk 0:02:53.3]} 11. h5
{[%clk 0:02:41.1]} 11... h6 {[%clk 0:02:53.1]} 12. Rc1 {[%clk 0:02:29.4]} 12...
Qxa3 {[%clk 0:02:50]} 13. Be2 {[%clk 0:02:27.9]} 13... b6 {[%clk 0:02:45.2]} 14.
O-O {[%clk 0:02:27.2]} 14... Ba6 {[%clk 0:02:43.4]} 15. Ra1 {[%clk 0:02:26.7]}
15... Qxa1 {[%clk 0:02:43.5]} 16. Rxa1 {[%clk 0:02:26.7]} 16... Bxe2 {[%clk
0:02:44.2]} 17. dxc5 {[%clk 0:02:11]} 17... bxc5 {[%clk 0:02:34.7]} 18. Be3
{[%clk 0:01:46.2]} 18... c4 {[%clk 0:02:09.5]} 19. Bc5 {[%clk 0:01:44.2]} 19...
Kg8 {[%clk 0:02:09]} 20. Bxe7 {[%clk 0:01:35.4]} 20... Nxe7 {[%clk 0:02:08.1]}
21. Qd4 {[%clk 0:01:26.1]} 21... Bxf3 {[%clk 0:01:54.8]} 22. gxf3 {[%clk
0:01:13.5]} 22... Nc6 {[%clk 0:01:50.6]} 23. Qc5 {[%clk 0:01:09.8]} 23... Nxe5
{[%clk 0:01:50.6]} 24. f4 {[%clk 0:01:04.9]} 24... Nf3+ {[%clk 0:01:49.1]} 25.
Kg2 {[%clk 0:00:59.5]} 25... Nh4+ {[%clk 0:01:49.2]} 26. Kh3 {[%clk 0:01:00.3]}
26... Nf5 {[%clk 0:01:48.8]} 27. Rxa7 {[%clk 0:01:00.2]} 27... Kh7 {[%clk
0:01:31]} 28. Rxf7 {[%clk 0:00:56.9]} 28... Ra1 {[%clk 0:01:15.3]} 29. Qc6
{[%clk 0:00:46.7]} 29... Re1 {[%clk 0:00:36.2]} 30. Rxf5 {[%clk 0:00:47]} 30...
exf5 {[%clk 0:00:36.8]} 31. Qg6+ {[%clk 0:00:47.9]} 31... Kg8 {[%clk 0:00:37.3]}
32. Qxf5 {[%clk 0:00:48.8]} 32... Re8 {[%clk 0:00:16.7]} 33. Qxd5+ {[%clk
0:00:48.9]} 33... Kh7 {[%clk 0:00:17]} 34. Qf5+ {[%clk 0:00:48.8]} 34... Kg8
{[%clk 0:00:17.5]} 35. Qb5 {[%clk 0:00:38.8]} 35... Kh7 {[%clk 0:00:16]} 36.
Qf5+ {[%clk 0:00:39.3]} 36... Kg8 {[%clk 0:00:16.4]} 37. Kg2 {[%clk 0:00:37.8]}
37... Rf8 {[%clk 0:00:16.2]} 38. Qd5+ {[%clk 0:00:35.7]} 38... Kh7 {[%clk
0:00:16.5]} 39. Qe4+ {[%clk 0:00:36.4]} 39... Kg8 {[%clk 0:00:16.7]} 40. Qxc4+
{[%clk 0:00:37.1]} 40... Kh7 {[%clk 0:00:16.2]} 41. Qe4+ {[%clk 0:00:37]} 41...
Kg8 {[%clk 0:00:16.4]} 42. c4 {[%clk 0:00:27.2]} 42... Rf6 {[%clk 0:00:16.5]}
43. c5 {[%clk 0:00:25.7]} 43... Kf7 {[%clk 0:00:16.4]} 44. Qd5+ {[%clk
0:00:25.4]} 44... Ke7 {[%clk 0:00:16.2]} 45. Qb7+ {[%clk 0:00:26.1]} 45... Ke6
{[%clk 0:00:15.7]} 46. c6 {[%clk 0:00:21.3]} 46... Rff8 {[%clk 0:00:08.8]} 47.
Qd7+ {[%clk 0:00:16.1]} 47... Kf6 {[%clk 0:00:08.6]} 48. c7 {[%clk 0:00:11.2]}
48... Ra8 {[%clk 0:00:08.6]} 49. Kg3 {[%clk 0:00:10.9]} 49... Rhe8 {[%clk
0:00:08.3]} 50. Kg4 {[%clk 0:00:10.1]} 50... Rac8 {[%clk 0:00:08.6]} 51. c4
{[%clk 0:00:09.2]} 51... Ra8 {[%clk 0:00:08.8]} 52. c5 {[%clk 0:00:09.4]} 52...
Rac8 {[%clk 0:00:09.3]} 53. f5 {[%clk 0:00:07.9]} 53... Re4+ {[%clk 0:00:08.4]}
54. f4 {[%clk 0:00:08]} 54... Ree8 {[%clk 0:00:07.4]} 55. c6 {[%clk 0:00:05.2]}
55... Ra8 {[%clk 0:00:05.2]} 56. Qd6+ {[%clk 0:00:03.5]} 56... Kf7 {[%clk
0:00:05.7]} 57. Qg6+ {[%clk 0:00:03.6]} 57... Kf8 {[%clk 0:00:06.1]} 58. f6
{[%clk 0:00:04]} 58... gxf6 {[%clk 0:00:06.6]} 59. Qxf6+ {[%clk 0:00:04.9]}
59... Kg8 {[%clk 0:00:06.9]} 60. Qg6+ {[%clk 0:00:05.8]} 60... Kf8 {[%clk
0:00:06.6]} 61. Qxh6+ {[%clk 0:00:06.7]} 61... Ke7 {[%clk 0:00:06.2]} 62. Qg7+
{[%clk 0:00:06.4]} 62... Kd6 {[%clk 0:00:06.6]} 63. Qd7+ {[%clk 0:00:06.9]}
63... Kc5 {[%clk 0:00:07]} 64. h6 {[%clk 0:00:07.1]} 64... Rg8+ {[%clk
0:00:07.3]} 65. Kh5 {[%clk 0:00:04.1]} 65... Rge8 {[%clk 0:00:03.8]} 66. h7
{[%clk 0:00:03.6]} 66... Kb6 {[%clk 0:00:04.4]} 67. f5 {[%clk 0:00:03.6]} 67...
Rf8 {[%clk 0:00:04.3]} 68. Kg6 {[%clk 0:00:04]} 68... Rfe8 {[%clk 0:00:04.7]}
69. f6 {[%clk 0:00:04.4]} 69... Rf8 {[%clk 0:00:03.4]} 70. Kg7 {[%clk 0:00:04]}
70... Rfc8 {[%clk 0:00:03.7]} 71. Qxc8 {[%clk 0:00:03.5]} 71... Rxc8 {[%clk
0:00:03.6]} 72. h8=Q {[%clk 0:00:04.4]} 72... Rxc7+ {[%clk 0:00:03.2]} 73. Kg6
{[%clk 0:00:04.7]} 73... Rf7 {[%clk 0:00:04]} 74. Kxf7 {[%clk 0:00:04.8]} 1-0

[Event "Late-Titled-Tuesday-Blitz-March-26-2024"]
[Site "Chess.com"]
[Date "2024.03.26"]
[Round "6"]
[White "ccccvhhhj"]
[Black "TedBelanoff"]
[Result "0-1"]
[WhiteElo "2437"]
[BlackElo "2228"]
[TimeControl "180+1"]
[EndTime "15:09:06 PDT"]
[Termination "TedBelanoff won on time"]

1. d4 {[%clk 0:03:00.9]} 1... b5 {[%clk 0:02:58.7]} 2. e4 {[%clk 0:02:58.2]}
2... a6 {[%clk 0:02:57.4]} 3. Nf3 {[%clk 0:02:56.2]} 3... Bb7 {[%clk 0:02:57]}
4. Bd3 {[%clk 0:02:56.8]} 4... g6 {[%clk 0:02:55.5]} 5. O-O {[%clk 0:02:56.5]}
5... Bg7 {[%clk 0:02:55.5]} 6. c3 {[%clk 0:02:48.4]} 6... e6 {[%clk 0:02:54.8]}
7. Re1 {[%clk 0:02:48.3]} 7... Ne7 {[%clk 0:02:54.1]} 8. Nbd2 {[%clk 0:02:48.7]}
8... d5 {[%clk 0:02:54.3]} 9. e5 {[%clk 0:02:45]} 9... Nd7 {[%clk 0:02:53.2]}
10. Nf1 {[%clk 0:02:45.5]} 10... c5 {[%clk 0:02:53.2]} 11. Ng3 {[%clk
0:02:42.8]} 11... Nf5 {[%clk 0:02:46.3]} 12. Nxf5 {[%clk 0:02:42.4]} 12... gxf5
{[%clk 0:02:46]} 13. Bg5 {[%clk 0:02:41.7]} 13... Qb6 {[%clk 0:02:39.1]} 14. Qd2
{[%clk 0:02:41.4]} 14... h6 {[%clk 0:02:34.6]} 15. Bh4 {[%clk 0:02:39.8]} 15...
Nf8 {[%clk 0:02:29.7]} 16. a4 {[%clk 0:02:29.6]} 16... Ng6 {[%clk 0:02:24.1]}
17. Bf6 {[%clk 0:02:28.7]} 17... Bxf6 {[%clk 0:02:18.7]} 18. exf6 {[%clk
0:02:29.6]} 18... c4 {[%clk 0:02:11.9]} 19. Bxf5 {[%clk 0:02:29.3]} 19... Nf8
{[%clk 0:02:05.9]} 20. axb5 {[%clk 0:02:28.3]} 20... axb5 {[%clk 0:02:05.8]} 21.
Rxa8+ {[%clk 0:02:29.2]} 21... Bxa8 {[%clk 0:02:06]} 22. Bc2 {[%clk 0:02:21.5]}
22... Qd6 {[%clk 0:01:59.8]} 23. Ra1 {[%clk 0:02:19.2]} 23... Bb7 {[%clk
0:01:58.7]} 24. Ne5 {[%clk 0:02:17.2]} 24... Nd7 {[%clk 0:01:52.9]} 25. Qf4
{[%clk 0:02:05.9]} 25... Nxe5 {[%clk 0:01:52.7]} 26. dxe5 {[%clk 0:02:05.7]}
26... Qc6 {[%clk 0:01:51.5]} 27. Qd4 {[%clk 0:02:01.6]} 27... Kd7 {[%clk
0:01:49]} 28. h4 {[%clk 0:01:55.4]} 28... Ra8 {[%clk 0:01:46.7]} 29. Rxa8 {[%clk
0:01:54.9]} 29... Bxa8 {[%clk 0:01:46.6]} 30. h5 {[%clk 0:01:51.6]} 30... Qa6
{[%clk 0:01:41.7]} 31. Kh2 {[%clk 0:01:48.4]} 31... Kc6 {[%clk 0:01:36.2]} 32.
Qe3 {[%clk 0:01:40]} 32... Qa1 {[%clk 0:01:28.1]} 33. Qxh6 {[%clk 0:01:39.5]}
33... Qxb2 {[%clk 0:01:28.2]} 34. Qd2 {[%clk 0:01:38.6]} 34... b4 {[%clk
0:01:20.4]} 35. h6 {[%clk 0:01:38.5]} 35... b3 {[%clk 0:01:18.5]} 36. h7 {[%clk
0:01:30.5]} 36... Qxc2 {[%clk 0:00:49]} 37. Qh6 {[%clk 0:01:26]} 37... b2 {[%clk
0:00:47.1]} 38. h8=Q {[%clk 0:01:26.4]} 38... b1=Q {[%clk 0:00:46.6]} 39. Qc8+
{[%clk 0:01:27.1]} 39... Kb6 {[%clk 0:00:37.9]} 40. Qhh8 {[%clk 0:01:14.7]}
40... Qh7+ {[%clk 0:00:36.7]} 41. Qxh7 {[%clk 0:01:13]} 41... Qxh7+ {[%clk
0:00:37.6]} 42. Kg1 {[%clk 0:01:13.6]} 42... Qb1+ {[%clk 0:00:31]} 43. Kh2
{[%clk 0:01:11.8]} 43... Qa1 {[%clk 0:00:28.6]} 44. Qd8+ {[%clk 0:01:07.8]}
44... Kb5 {[%clk 0:00:20.9]} 45. Qe8+ {[%clk 0:01:07.4]} 45... Bc6 {[%clk
0:00:20.8]} 46. Qxf7 {[%clk 0:01:07.4]} 46... Qxc3 {[%clk 0:00:19.7]} 47. Qh5
{[%clk 0:01:07.8]} 47... Qd4 {[%clk 0:00:14.1]} 48. f7 {[%clk 0:00:59.7]} 48...
Qf4+ {[%clk 0:00:13.7]} 49. Kg1 {[%clk 0:00:59.8]} 49... c3 {[%clk 0:00:13.8]}
50. Qe2+ {[%clk 0:00:55.3]} 50... Kb6 {[%clk 0:00:10.6]} 51. Qe3+ {[%clk
0:00:43.8]} 51... Qxe3 {[%clk 0:00:10.6]} 52. fxe3 {[%clk 0:00:44.7]} 52... c2
{[%clk 0:00:11.1]} 53. f8=Q {[%clk 0:00:45.6]} 53... c1=Q+ {[%clk 0:00:11.7]}
54. Kh2 {[%clk 0:00:44.5]} 54... Qxe3 {[%clk 0:00:11.6]} 55. Qd6 {[%clk
0:00:44.8]} 55... Qf4+ {[%clk 0:00:11.2]} 56. Kg1 {[%clk 0:00:43.7]} 56... Qd4+
{[%clk 0:00:11.2]} 57. Kh2 {[%clk 0:00:43.2]} 57... Qh4+ {[%clk 0:00:11.2]} 58.
Kg1 {[%clk 0:00:43.2]} 58... Qh6 {[%clk 0:00:10.5]} 59. Qb4+ {[%clk 0:00:41.1]}
59... Bb5 {[%clk 0:00:10.7]} 60. Qd6+ {[%clk 0:00:40.2]} 60... Kb7 {[%clk
0:00:11.1]} 61. Qe7+ {[%clk 0:00:39.5]} 61... Ka6 {[%clk 0:00:11.4]} 62. Qd6+
{[%clk 0:00:39.1]} 62... Kb7 {[%clk 0:00:11.7]} 63. Qe7+ {[%clk 0:00:39.3]}
63... Kb6 {[%clk 0:00:11.6]} 64. Qd6+ {[%clk 0:00:39.9]} 64... Ka5 {[%clk
0:00:12]} 65. Qa3+ {[%clk 0:00:40.2]} 65... Ba4 {[%clk 0:00:12.3]} 66. Qc5+
{[%clk 0:00:40.6]} 66... Ka6 {[%clk 0:00:12.5]} 67. Qd6+ {[%clk 0:00:40]} 67...
Kb5 {[%clk 0:00:12.4]} 68. Qb8+ {[%clk 0:00:36.7]} 68... Kc4 {[%clk 0:00:12.4]}
69. Qc7+ {[%clk 0:00:36.7]} 69... Kd4 {[%clk 0:00:12.3]} 70. Qa7+ {[%clk
0:00:35.3]} 70... Kxe5 {[%clk 0:00:11.9]} 71. Qxa4 {[%clk 0:00:35.5]} 71... Qe3+
{[%clk 0:00:12]} 72. Kh1 {[%clk 0:00:34.4]} 72... Qc1+ {[%clk 0:00:10.2]} 73.
Kh2 {[%clk 0:00:30.7]} 73... Qf4+ {[%clk 0:00:10.2]} 74. Qxf4+ {[%clk
0:00:30.7]} 74... Kxf4 {[%clk 0:00:11.1]} 75. Kh3 {[%clk 0:00:31.4]} 75... d4
{[%clk 0:00:10.8]} 76. Kh4 {[%clk 0:00:32]} 76... d3 {[%clk 0:00:10.7]} 77. g4
{[%clk 0:00:32.9]} 77... d2 {[%clk 0:00:10.2]} 78. g5 {[%clk 0:00:33.8]} 78...
d1=Q {[%clk 0:00:10.6]} 0-1